Workbook

Sheet Introduction
B2: LT 39 Federal Tax Worksheet
B3: 2018-02-09
B4: Personal Finance: Another Perspective
B6: Purpose:
B7: The purpose of this spreadsheet is to give an Excel template for calculating Federal
B8: Taxes using the major categories discussed in class.
B10: Instructions:
B11: I recommend that you fill in the green data, and do not change anything else. If you
B12: find something that we have not made a category for, please determine where it goes
B13: and overwrite one of the other area not used. Please note that there are drop down boxes
B14: in cells "K3", "K4", "I26", "H27", "G50" and "G52." In this worksheet, we divide credits
B15: to include both refundable and non-refundable. The math should take this into effect.
B16: The button "Clear Inputs" clears all the input in preparation for a new problem.
B18: Disclosure:
B19: The purpose of this spreadsheet and this class is to help you get your financial house in
B20: order and to help you on your road to financial self-reliance. If there are mistakes in this
B21: spreadsheet, please bring them to our attention and we will correct them in upcoming
B22: versions. The teacher, and BYU, specifically disclaim any liability, or responsibility for
B23: claims, loss, or risk incurred, directly or indirectly, from using this material.

Sheet Tax Worksheet
F2: Federal Tax Liability Worksheet (LT39) | J2: Use Drop Down Box | AV2: Year | AX2: Filing Status | AZ2: Family Size | BB2: Standard versus Itemized
G3: Sudweeks | I3: Year & Status: | K3: 2019 | AO3: Current | AQ3: 2019 Data | AS3: 2018 Data | AV3: 2019 | AX3: Single (not HoH) | AZ3: 0 | BA3: FS | BB3: Standard
G4: =TODAY() -> 2019-04-17 | I4: Married Filing Jointly | AN4: Exemption Amounts | AO4: =IF($K$3=2019,AQ4,AS4) -> 0 | AQ4: 0 | AS4: 0 | AV4: 2018 | AX4: Head of Household | AZ4: 1 | BA4: HoH | BB4: Itemized
AN5: MFJ SD | AO5: 24400 | AQ5: 24400 | AS5: 24000 | AX5: Married Filing Jointly | AZ5: 2 | BA5: MFJ
F6: =" Note: Using "&AN13 -> Note: Using 2019 Tax Rates for Married Filing Jointly | AN6: FS SD | AO6: 12200 | AQ6: 12200 | AS6: 12000 | AX6: Married Filing Singly | AZ6: 3 | BA6: MFS
C7: Step 1: Determine Total Income | K7: Amounts | O7: Notes: | AN7: MFS SD | AO7: 12200 | AQ7: 12200 | AS7: 12000 | AV7: Key code: | AW7: =IF(I4="Married Filing Jointly",RIGHT(K3,2)&"MFJ",IF(I4="Married Filing Singly",RIGHT(K3,2)&"MFS",IF(I4="Head of Household",RIGHT(K3,2)&"HOH",RIGHT(K3,2)&"FS"))) -> 19MFJ | AZ7: 4
D8: Includes: | O8: This is everything you make | AN8: HOH SD | AO8: 18350 | AQ8: 18350 | AS8: 18000 | AZ8: 5
E9: Wages, salaries, tips | I9: 80000 | AN9: Charitable Mileage | AO9: 0.14 | AQ9: 0.14 | AS9: 0.14 | AZ9: 6
E10: Investment/interest income/bonus | I10: 5000 | AN10: Medical % | AO10: 0.1 | AQ10: 0.1 | AS10: 0.075 | AZ10: 7
E11: Education income in excess of expenses | AN11: Child Tax Credit | AO11: =IF($K$3=2019,AQ11,AS11) -> 2000 | AQ11: 2000 | AS11: 2000 | AZ11: 8
D12: Excludes: | AZ12: 9
E13: Qualified retirement contributions (401k, 403b, not Roth's) | I13: 15000 | O13: This is your contribution to a tax-deferred retirement plans, not Roth though | AN13: =IF($AW$7="18MFJ","2018 Tax Rates for Married Filing Jointly",IF($AW$7="19MFJ","2019 Tax Rates for Married Filing Jointly",IF($AW$7="18FS","2018 Tax Rates for Single Taxpayers",IF($AW$7="17FS","2017 Tax Rates for Single Taxpayers",IF($AW$7="18HOH","2018 Tax Rates for Head of Household",IF($AW$7="17HOH","2017 Tax Rates for Head of Household",IF($AW$7="18MFS","2018 Tax Rates for Married Filing Singly",IF($AW$7="17MFS","2017 Tax Rates for Married Filing Singly","NA")))))))) -> 2019 Tax Rates for Married Filing Jointly
E14: Interest on US Savings bonds | O14: This is interest on your US Savings bonds | AN14: =IF($AW$7="18MFJ",AN23,IF($AW$7="19MFJ",AN33,IF($AW$7="18FS",AR23,IF($AW$7="19FS",AR33,IF($AW$7="18MFJ",AN23,IF($AW$7="19MFJ",AN33,IF($AW$7="18MFS",AZ23,IF($AW$7="19MFS",AZ33,IF($AW$7="18HOH",AV23,IF($AW$7="19HOH",AV33,"NA")))))))))) -> 0 | AO14: 19400 | AP14: 0.1
D15: Total Gross Income | K15: =-I14-I13+I11+I10+I9 -> 70000 | O15: Gross Income | AN15: 19400 | AO15: 78950 | AP15: 0.12
AN16: 78950 | AO16: 168400 | AP16: 0.22
C17: Adjusted Gross Income | AN17: 168400 | AO17: 321450 | AP17: 0.24
D18: Excludes: | AN18: 321450 | AO18: 408200 | AP18: 0.32
E19: Tuition & Fees and Student Loan interest Deduction** | O19: You can take your qualified expenses as AOC Credits which are generally better, or exclusions to AGI. Some may not be eligible for the AOC, so will take it here | AN19: 408200 | AO19: 612350 | AP19: 0.35
E20: IRA/SEP contributions (not Roth IRA) | I20: 5000 | O20: This is for your Individual Retirement Account contributions, but not Roth contributions | AN20: 612350 | AO20: 0 | AP20: 0.37
E21: Medical Savings Account contributions | O21: This is your contributions to your high deductible Health Savings Account | AN21: 2018 Tax Rates | AR21: 2018 Tax Rates | AV21: 2018 Tax Rates | AZ21: 2018 Tax Rates
E22: Flexible Spending Account contributions | O22: These are contributions to your flexible spending accounts where you pay medical bills with pre-tax dollars | AN22: Married Filing Jointly | AR22: Single (not HoH) | AV22: Head of Household | AZ22: Married Filing Singly
D23: Total Adjusted Gross Income | K23: =K15-I19-I20-I21-I22 -> 65000 | O23: Adjustable Gross Income | AN23: 0 | AO23: 19050 | AP23: 0.1 | AR23: 0 | AS23: 9525 | AT23: 0.1 | AV23: 0 | AW23: 13600 | AX23: 0.1 | AZ23: 0 | BA23: 9525 | BB23: 0.1
AN24: =AO23 -> 19050 | AO24: 77400 | AP24: 0.12 | AR24: =AS23 -> 9525 | AS24: 38700 | AT24: 0.12 | AV24: =AW23 -> 13600 | AW24: 51800 | AX24: 0.12 | AZ24: =BA23 -> 9525 | BA24: 38700 | BB24: 0.12
C25: Step 2: Calculate Taxable Income | AN25: 77400 | AO25: 165000 | AP25: 0.22 | AR25: 38700 | AS25: 82500 | AT25: 0.22 | AV25: 51800 | AW25: 82500 | AX25: 0.22 | AZ25: 38700 | BA25: 82500 | BB25: 0.22
C26: Standard or Itemized Deductions | H26: Itemized | O26: This changes your options between the Standard and Itemized deductions. It is a drop-down box | AN26: 165000 | AO26: 315000 | AP26: 0.24 | AR26: 82500 | AS26: 157500 | AT26: 0.24 | AV26: 82500 | AW26: 157500 | AX26: 0.24 | AZ26: 82500 | BA26: 157500 | BB26: 0.24
D27: Standard deduction | I27: =IF(I4=AX3,AO6,IF(I4=AX4,AO8,IF(I4=AX5,AO5,AO7))) -> 24400 | K27: =IF(H26="Standard",I27,I36) -> 0 | O27: This is your standard deduction and your used deduction | AN27: 315000 | AO27: 400000 | AP27: 0.32 | AR27: 157500 | AS27: 200000 | AT27: 0.32 | AV27: 157500 | AW27: 200000 | AX27: 0.32 | AZ27: 157500 | BA27: 200000 | BB27: 0.32
C28: Itemized deductions | AN28: 400000 | AO28: 600000 | AP28: 0.35 | AR28: 200000 | AS28: 500000 | AT28: 0.35 | AV28: 200000 | AW28: 500000 | AX28: 0.35 | AZ28: 200000 | BA28: 500000 | BB28: 0.35
D29: Charitable contributions (including tithes and offerings) | O29: This is your charitable deductions, including contributions to 501c3 organizations. It would also include mission costs | AN29: 600000 | AP29: 0.37 | AR29: 500000 | AT29: 0.37 | AV29: 500000 | AX29: 0.37 | AZ29: 500000 | BB29: 0.37
D30: State and Local Taxes (SALT $10,000 max.) | I30: =IF(H30>10000,10000,H30) -> 0 | O30: State and local taxes are limited to $10,000 maximum
D31: Home mortgage interest | O31: This is home mortgage interest | AN31: 2019 Tax Rates | AR31: =AN31 -> 2019 Tax Rates | AV31: =AR31 -> 2019 Tax Rates | AZ31: =AV31 -> 2019 Tax Rates
D32: Other taxes | AN32: Married Filing Jointly | AR32: Single (not HoH) | AV32: Head of Household | AZ32: Married Filing Singly
D33: Charitable Mileage | H33: =AO9 -> 0.14 | I33: =H33*G33 -> 0 | O33: Charitable mileage is mileage from your community or church responsibilities, but does not include mileage going to church | AN33: 0 | AO33: 19400 | AP33: 0.1 | AR33: 0 | AS33: 9700 | AT33: 0.1 | AV33: 0 | AW33: 13850 | AX33: 0.1 | AZ33: 0 | BA33: 9700 | BB33: 0.1
D34: =IF(K3=2017,"Job Related Expenses > 2% AGI","Job Related - Not Deductible in 2018") -> Job Related - Not Deductible in 2018 | H34: =IF(K3=2017,K23*0.02,0) -> 0 | I34: =IF(H34=0,"",IF(G34-H34<0,0,G34-H34)) ->  | O34: Job related used to be deductible, but this was eliminated in 2018 | AN34: =AO33 -> 19400 | AO34: 78950 | AP34: 0.12 | AR34: =AS33 -> 9700 | AS34: 39475 | AT34: 0.12 | AV34: =AW33 -> 13850 | AW34: 52850 | AX34: 0.12 | AZ34: =BA33 -> 9700 | BA34: 39475 | BB34: 0.12
D35: ="Medical expenses > "&TEXT(AO10,"0.0%")&" of AGI" -> Medical expenses > 10.0% of AGI | H35: =IF(K23<=0,0,K23*$AO$10) -> 6500 | I35: =IF(G35-H35<0,0,G35-H35) -> 0 | O35: Medical expenses in excess of 7.5% of AGI are deductible | AN35: 78950 | AO35: 168400 | AP35: 0.22 | AR35: 39475 | AS35: 84200 | AT35: 0.22 | AV35: 52850 | AW35: 84200 | AX35: 0.22 | AZ35: 39475 | BA35: 84200 | BB35: 0.22
D36: Total itemized deductions | I36: =SUM(I29:I35) -> 0 | AN36: 168400 | AO36: 321450 | AP36: 0.24 | AR36: 84200 | AS36: 160725 | AT36: 0.24 | AV36: 84200 | AW36: 160700 | AX36: 0.24 | AZ36: 84200 | BA36: 160725 | BB36: 0.24
D37: Total Taxable Income | K37: =IF(K23-K27<0,0,K23-K27) -> 65000 | O37: Taxable Income | AN37: 321450 | AO37: 408200 | AP37: 0.32 | AR37: 160725 | AS37: 204100 | AT37: 0.32 | AV37: 160700 | AW37: 204100 | AX37: 0.32 | AZ37: 160725 | BA37: 204100 | BB37: 0.32
AN38: 408200 | AO38: 612350 | AP38: 0.35 | AR38: 204100 | AS38: 510300 | AT38: 0.35 | AV38: 204100 | AW38: 510300 | AX38: 0.35 | AZ38: 204100 | BA38: 306175 | BB38: 0.35
C39: ="Step 3: Determine Tax Liability for "&K3&" for "&I4 -> Step 3: Determine Tax Liability for 2019 for Married Filing Jointly | O39: Amounts Taxed | AN39: 612350 | AP39: 0.37 | AR39: 510300 | AT39: 0.37 | AV39: 510300 | AX39: 0.37 | AZ39: 306175 | BB39: 0.37
E40: =AP14 -> 0.1 | F40: =AN14 -> 0 | G40: 19400 | H40: =IF($K$37>$G40,(G40-F40)*E40,IF($K$37>G39,($K$37-F40)*E40,0)) -> 1940 | O40: =IF($K$37<G40,$K$37-F40,IF($K$37>G40,G40-F40,IF($K$37<G40,""))) -> 19400 | P40: =IF(O40=0,"",E40) -> 0.1
E41: 0.12 | F41: 19400 | G41: 78950 | H41: 5472 | O41: =IF(H41=0,0,IF($K$37<G41,$K$37-F41,IF($K$37>G41,G41-F41,IF(AND($K$37<G41,$K$37<G40),"","")))) -> 45600 | P41: =IF(O41=0,"",E41) -> 0.12
E42: 0.22 | F42: 78950 | G42: 168400 | H42: 0 | O42: =IF(H42=0,0,IF($K$37<G42,$K$37-F42,IF($K$37>G42,G42-F42,IF(AND($K$37<G42,$K$37<G41),"","")))) -> 0
E43: 0.24 | F43: 168400 | G43: 321450 | H43: 0 | O43: =IF(H43=0,0,IF($K$37<G43,$K$37-F43,IF($K$37>G43,G43-F43,IF(AND($K$37<G43,$K$37<G42),"","")))) -> 0
E44: 0.32 | F44: 321450 | G44: 408200 | H44: 0 | O44: =IF(H44=0,0,IF($K$37<G44,$K$37-F44,IF($K$37>G44,G44-F44,IF(AND($K$37<G44,$K$37<G43),"","")))) -> 0
E45: 0.35 | F45: 408200 | G45: 612350 | H45: 0 | O45: =IF(H45=0,0,IF($K$37<G45,$K$37-F45,IF($K$37>G45,G45-F45,IF(AND($K$37<G45,$K$37<G44),"","")))) -> 0
D46: Total Tax Liability | K46: =SUM(H40:H45) -> 7412 | O46: This is your amount of taxes owed
C48: Step 4: Calculate Tax Due or Tax Refund | H48: Maximum | I48: Total Credits: | K48: Refundable:
D49: Family Credits (non-refundable)* | H49: 500 | I49: =H49*G49 -> 0 | O49: The family credit is $500 per older dependent and is not refundable
D50: Lifetime Learning Credit (non-refund.) | H50: =IF(G50="","",10000) ->  | I50: =IF(G50>=10000,10000*0.2,IF(G50<10000,G50*0.2)) -> 0 | O50: The Lifetime Learning Credit maximum is for $10,000 of expenses and the credit is 20% of expenses. It is non-refundable
D51: Child Tax Credit (<17, partial. refund.)* | G51: 1 | H51: 2000 | I51: =H51*G51 -> 2000 | K51: =G51*1400 -> 1400 | O51: The child tax credit is $2,000 per child 16 years and younger, of which $1,400 is refundable. It has limits of 15% of your earned income in excess of $4,500, and phases out with AGI between $400,000 and $440,000
D52: American Opport. Credit (Partial)* | H52: =IF(G52="","",4000) ->  | I52: =IF(G52<=2000,G52,IF(AND(G52>=2000,G52<=4000),2000+(G52-2000)*0.25,4000)) -> 0 | K52: =IF(G52<=2000,G52*0.4,IF(AND(G52>2000,G52<=4000),2000*0.4+(G52-2000)*0.1,2000*0.4+(2000)*0.1)) -> 0 | O52: AOC is for tuition and books only. For your first $2,000, get $1 credit for each dollar of expense, and only 40% refundable. The second $2,000, you get a .25 credit and only 40% refundable, which is essential 10% of second $2,000).
D53: American Opport. Credit (Partial)* | H53: =IF(G53="","",4000) ->  | I53: =IF(G53<=2000,G53,IF(AND(G53>=2000,G53<=4000),2000+(G53-2000)*0.25,4000)) -> 0 | K53: =IF(G53<=2000,G53*0.4,IF(AND(G53>2000,G53<=4000),2000*0.4+(G53-2000)*0.1,2000*0.4+(G53-2000)*0.1)) -> 0 | O53: AOC is for tuition and books only. For your first $2,000, get $1 credit for each dollar of expense, and only 40% refundable. The second $2,000, you get a .25 credit and only 40% refundable, which is essential 10% of second $2,000).
D54: Total Tax Credits / Total Refundable | I54: =SUM(I49:I53) -> 2000 | K54: =K53+K51+K50+K52 -> 1400
C55: Tax Liability after Credits | K55: =IF(K46-I54>0,K46-I54,IF(AND(K46-I54<0,I54-K46<K54),K46-I54,(K46-K54))) -> 5412 | O55: This is your total tax liability after your credits. Non-refundable credits can help get your taxes to zero. Partially and fully refundable credits can allow refunds up to the credit amount
C57: Amount Withheld (withholdings - including refundable credits) | O57: This is your company withholding which they took out of your paycheck
C59: Total Taxes Due (Refund) | K59: =K55-K57 -> 5412 | O59: If this is positive, you owe tax. If it is negative, you have a refund
D61: Marginal Tax Rate: | K61: =IF(H44>0,E44,IF(H43>0,E43,IF(H42>0,E42,IF(H41>0,E41,E40)))) -> 0.12 | O61: This is your marginal tax rate
D62: Average Tax Rate on Gross Income | K62: =IF(K55<=0,0,K55/K15) -> 0.07731428571 | O62: This is your average tax rate on Gross Income
D66: * Per person
D67: ** | E67: MAGI Limits apply

Sheet Sheet1
B6: Earned Income Credit 2018
B7: Depen- | C7: Maximum | D7: Phase-out Limits
B8: dents | C8: Credit | D8: Single | E8: MFJ
B9: 0 | C9: 519 | D9: 15270 | E9: 20950
B10: 1 | C10: 3461 | D10: 40320 | E10: 46010
B11: 2 | C11: 5716 | D11: 45802 | E11: 51492
B12: 3 | C12: 6431 | D12: 49154 | E12: 54884
